[Event "*** Titled Tuesday Blitz"]
[Site "Chess.com"]
[Date "2021.02.02"]
[Round "9"]
[White "MoreChessJulia"]
[Black "andrewtnb"]
[Result "0-1"]
[WhiteElo "2157"]
[BlackElo "2299"]
[TimeControl "180+1"]
[EndTime "11:42:03 PST"]
[Termination "andrewtnb won by resignation"]

1. d4 {[%clk 0:02:59.1]} 1... Nf6 {[%clk 0:02:58.8]} 2. Bg5 {[%clk 0:02:58.7]}
2... e6 {[%clk 0:02:55.4]} 3. Nd2 {[%clk 0:02:58.3]} 3... d5 {[%clk 0:02:52.6]}
4. e3 {[%clk 0:02:57.5]} 4... c5 {[%clk 0:02:50]} 5. f4 {[%clk 0:02:56.9]} 5...
b6 {[%clk 0:02:37.7]} 6. c3 {[%clk 0:02:55.6]} 6... Be7 {[%clk 0:02:34.5]} 7.
Ngf3 {[%clk 0:02:54.5]} 7... a5 {[%clk 0:02:29.4]} 8. Bb5+ {[%clk 0:02:53]} 8...
Bd7 {[%clk 0:02:25.9]} 9. Bd3 {[%clk 0:02:52]} 9... Nc6 {[%clk 0:02:22.9]} 10.
O-O {[%clk 0:02:51.1]} 10... h6 {[%clk 0:02:18.6]} 11. Bxf6 {[%clk 0:02:50.3]}
11... gxf6 {[%clk 0:02:16.5]} 12. Rc1 {[%clk 0:02:49.5]} 12... c4 {[%clk
0:02:14.9]} 13. Bb1 {[%clk 0:02:48.9]} 13... f5 {[%clk 0:02:15.4]} 14. Ne5
{[%clk 0:02:47.7]} 14... Nxe5 {[%clk 0:02:13.2]} 15. fxe5 {[%clk 0:02:47.6]}
15... b5 {[%clk 0:02:10.3]} 16. a3 {[%clk 0:02:46.9]} 16... h5 {[%clk
0:02:03.9]} 17. Rf3 {[%clk 0:02:44.5]} 17... h4 {[%clk 0:01:56]} 18. Rh3 {[%clk
0:02:39]} 18... b4 {[%clk 0:01:49.5]} 19. axb4 {[%clk 0:02:38.5]} 19... axb4
{[%clk 0:01:49.5]} 20. g4 {[%clk 0:02:36.8]} 20... Rg8 {[%clk 0:01:35.8]} 21.
Nf1 {[%clk 0:02:28.2]} 21... fxg4 {[%clk 0:01:31.3]} 0-1

[Event "*** Titled Tuesday Blitz"]
[Site "Chess.com"]
[Date "2021.02.02"]
[Round "9"]
[White "Kovalchuk94"]
[Black "sokidze"]
[Result "1/2-1/2"]
[WhiteElo "2639"]
[BlackElo "2524"]
[TimeControl "180+1"]
[EndTime "11:42:07 PST"]
[Termination "Game drawn by repetition"]

1. e4 {[%clk 0:03:00.9]} 1... c5 {[%clk 0:02:59.9]} 2. Nf3 {[%clk 0:03:00.3]}
2... Nc6 {[%clk 0:03:00.1]} 3. d4 {[%clk 0:03:00.5]} 3... cxd4 {[%clk
0:03:00.3]} 4. Nxd4 {[%clk 0:03:01.4]} 4... g6 {[%clk 0:03:00.5]} 5. c4 {[%clk
0:03:00.9]} 5... Nf6 {[%clk 0:03:00.5]} 6. Nc3 {[%clk 0:03:00.6]} 6... d6 {[%clk
0:03:01.1]} 7. Be2 {[%clk 0:03:00.3]} 7... Nxd4 {[%clk 0:03:00.9]} 8. Qxd4
{[%clk 0:03:01.2]} 8... Bg7 {[%clk 0:03:01.8]} 9. Be3 {[%clk 0:03:01.5]} 9...
O-O {[%clk 0:03:01.9]} 10. Qd2 {[%clk 0:03:01.7]} 10... a5 {[%clk 0:03:02.4]}
11. O-O {[%clk 0:03:01.6]} 11... a4 {[%clk 0:03:02.5]} 12. Rab1 {[%clk
0:03:01.9]} 12... Qa5 {[%clk 0:02:51.1]} 13. Rfc1 {[%clk 0:02:58.4]} 13... Be6
{[%clk 0:02:39.8]} 14. f3 {[%clk 0:02:51]} 14... Rfc8 {[%clk 0:02:34.9]} 15. b4
{[%clk 0:02:47.2]} 15... axb3 {[%clk 0:02:34.8]} 16. axb3 {[%clk 0:02:48.1]}
16... Qb4 {[%clk 0:02:35.3]} 17. Na4 {[%clk 0:02:34.5]} 17... Qxd2 {[%clk
0:02:22]} 18. Bxd2 {[%clk 0:02:35.4]} 18... Nd7 {[%clk 0:02:22.2]} 19. Be3
{[%clk 0:02:35.2]} 19... f5 {[%clk 0:02:09.5]} 20. Bd3 {[%clk 0:02:25.4]} 20...
Kf7 {[%clk 0:01:55.7]} 21. exf5 {[%clk 0:02:24.6]} 21... Bxf5 {[%clk 0:01:51.2]}
22. Bxf5 {[%clk 0:02:24.2]} 22... gxf5 {[%clk 0:01:52.1]} 23. Kf1 {[%clk
0:02:14.3]} 23... Rab8 {[%clk 0:01:50.4]} 24. Ba7 {[%clk 0:02:13]} 24... Ra8
{[%clk 0:01:50.3]} 25. Be3 {[%clk 0:02:13.1]} 25... Rab8 {[%clk 0:01:45.2]} 26.
Ba7 {[%clk 0:02:12.2]} 26... Ra8 {[%clk 0:01:45.2]} 27. Be3 {[%clk 0:02:12.2]}
1/2-1/2

[Event "*** Titled Tuesday Blitz"]
[Site "Chess.com"]
[Date "2021.02.02"]
[Round "9"]
[White "KaterinaMiroshnik"]
[Black "fmshawnrl123"]
[Result "0-1"]
[WhiteElo "2613"]
[BlackElo "2778"]
[TimeControl "180+1"]
[EndTime "11:42:24 PST"]
[Termination "fmshawnrl123 won by resignation"]

1. d4 {[%clk 0:03:00.9]} 1... Nf6 {[%clk 0:02:55.2]} 2. Nf3 {[%clk 0:03:01.8]}
2... e6 {[%clk 0:02:54]} 3. e3 {[%clk 0:03:01.8]} 3... d5 {[%clk 0:02:54.9]} 4.
Be2 {[%clk 0:03:01.8]} 4... Be7 {[%clk 0:02:54.8]} 5. O-O {[%clk 0:03:02.2]}
5... O-O {[%clk 0:02:55.7]} 6. b3 {[%clk 0:03:02.1]} 6... c5 {[%clk 0:02:55.9]}
7. Bb2 {[%clk 0:03:02.7]} 7... Nc6 {[%clk 0:02:56.3]} 8. dxc5 {[%clk 0:03:02.9]}
8... Bxc5 {[%clk 0:02:56.3]} 9. Nbd2 {[%clk 0:03:03.2]} 9... Qe7 {[%clk
0:02:56.2]} 10. c4 {[%clk 0:03:03.1]} 10... Ba3 {[%clk 0:02:56.6]} 11. Qc1
{[%clk 0:03:01.1]} 11... Bxb2 {[%clk 0:02:53.7]} 12. Qxb2 {[%clk 0:03:02]} 12...
Rd8 {[%clk 0:02:53.1]} 13. Rfd1 {[%clk 0:03:00.5]} 13... dxc4 {[%clk 0:02:39.2]}
14. Nxc4 {[%clk 0:02:56.7]} 14... b6 {[%clk 0:02:38.6]} 15. Nfe5 {[%clk
0:02:52.2]} 15... Bb7 {[%clk 0:02:36.5]} 16. Bf3 {[%clk 0:02:49.9]} 16... Nxe5
{[%clk 0:02:35.8]} 17. Nxe5 {[%clk 0:02:47.1]} 17... Bxf3 {[%clk 0:02:35.2]} 18.
Nxf3 {[%clk 0:02:47.4]} 18... Rxd1+ {[%clk 0:02:34.3]} 19. Rxd1 {[%clk
0:02:46.6]} 19... Rd8 {[%clk 0:02:35.2]} 20. Rxd8+ {[%clk 0:02:43.7]} 20... Qxd8
{[%clk 0:02:36.1]} 21. Qc2 {[%clk 0:02:43.9]} 21... h6 {[%clk 0:02:34]} 22. h3
{[%clk 0:02:43.7]} 22... Nd5 {[%clk 0:02:17.9]} 23. Nd4 {[%clk 0:02:40.6]} 23...
Qd7 {[%clk 0:02:02.2]} 24. Qc6 {[%clk 0:02:34.4]} 24... Qe7 {[%clk 0:01:52.9]}
25. Qc8+ {[%clk 0:02:25.9]} 25... Kh7 {[%clk 0:01:53.4]} 26. Nc6 {[%clk
0:02:20.9]} 26... Qa3 {[%clk 0:01:47.3]} 27. Nxa7 {[%clk 0:02:15.9]} 27... Qxa7
{[%clk 0:01:46.3]} 0-1

[Event "*** Titled Tuesday Blitz"]
[Site "Chess.com"]
[Date "2021.02.02"]
[Round "9"]
[White "IDontWannaRecognized"]
[Black "Savagelittlemole"]
[Result "0-1"]
[WhiteElo "2287"]
[BlackElo "2461"]
[TimeControl "180+1"]
[EndTime "11:43:09 PST"]
[Termination "Savagelittlemole won on time"]

1. d4 {[%clk 0:03:00.9]} 1... Nf6 {[%clk 0:02:59.7]} 2. Bf4 {[%clk 0:03:01.3]}
2... g6 {[%clk 0:02:59.2]} 3. Nc3 {[%clk 0:03:00.7]} 3... Bg7 {[%clk 0:02:59.2]}
4. e4 {[%clk 0:03:00.8]} 4... O-O {[%clk 0:02:59.8]} 5. Qd2 {[%clk 0:02:54.5]}
5... d5 {[%clk 0:02:59.6]} 6. e5 {[%clk 0:02:54.2]} 6... Ne4 {[%clk 0:02:57.5]}
7. Nxe4 {[%clk 0:02:46.2]} 7... dxe4 {[%clk 0:02:58.4]} 8. Bh6 {[%clk
0:02:44.4]} 8... c5 {[%clk 0:02:54.6]} 9. c3 {[%clk 0:02:40.5]} 9... cxd4 {[%clk
0:02:52.9]} 10. cxd4 {[%clk 0:02:41.4]} 10... Nc6 {[%clk 0:02:53.1]} 11. Bxg7
{[%clk 0:02:30.1]} 11... Kxg7 {[%clk 0:02:54]} 12. Ne2 {[%clk 0:02:30.6]} 12...
Bg4 {[%clk 0:02:53.7]} 13. Rd1 {[%clk 0:02:24.7]} 13... Qb6 {[%clk 0:02:49.3]}
14. Qf4 {[%clk 0:01:26]} 14... Bxe2 {[%clk 0:02:45.1]} 15. Bxe2 {[%clk
0:01:20.5]} 15... Nxd4 {[%clk 0:02:42.8]} 16. Qxe4 {[%clk 0:01:14.5]} 16... Qa5+
{[%clk 0:02:40.9]} 17. Rd2 {[%clk 0:00:39.4]} 17... Rfd8 {[%clk 0:02:34.8]} 0-1

[Event "*** Titled Tuesday Blitz"]
[Site "Chess.com"]
[Date "2021.02.02"]
[Round "9"]
[White "Matols"]
[Black "canary2016"]
[Result "1-0"]
[WhiteElo "2274"]
[BlackElo "2032"]
[TimeControl "180+1"]
[EndTime "11:43:19 PST"]
[Termination "Matols won by checkmate"]

1. d4 {[%clk 0:03:00.9]} 1... Nf6 {[%clk 0:02:59]} 2. c4 {[%clk 0:03:00.8]} 2...
e6 {[%clk 0:02:58.8]} 3. g3 {[%clk 0:03:00.9]} 3... Bb4+ {[%clk 0:02:56.6]} 4.
Bd2 {[%clk 0:03:00]} 4... Bxd2+ {[%clk 0:02:56.3]} 5. Nxd2 {[%clk 0:02:55.9]}
5... O-O {[%clk 0:02:56.1]} 6. e4 {[%clk 0:02:53.2]} 6... b6 {[%clk 0:02:50.1]}
7. Bg2 {[%clk 0:02:52.4]} 7... Bb7 {[%clk 0:02:48.3]} 8. Ne2 {[%clk 0:02:52.3]}
8... d5 {[%clk 0:02:46.7]} 9. cxd5 {[%clk 0:02:43]} 9... exd5 {[%clk 0:02:46.3]}
10. e5 {[%clk 0:02:42.8]} 10... Nfd7 {[%clk 0:02:44.2]} 11. O-O {[%clk 0:02:40]}
11... c5 {[%clk 0:02:43.5]} 12. Nc4 {[%clk 0:02:32.6]} 12... cxd4 {[%clk
0:02:35]} 13. Nd6 {[%clk 0:02:28.5]} 13... Bc6 {[%clk 0:02:31.7]} 14. f4 {[%clk
0:02:26.1]} 14... Nc5 {[%clk 0:02:28.7]} 15. Nxd4 {[%clk 0:02:21.5]} 15... Ba4
{[%clk 0:02:21.5]} 16. b3 {[%clk 0:02:19.2]} 16... Bc6 {[%clk 0:02:21]} 17. Nxc6
{[%clk 0:02:17.8]} 17... Nxc6 {[%clk 0:02:21]} 18. Bxd5 {[%clk 0:02:07.5]} 18...
Qc7 {[%clk 0:02:20.8]} 19. Qf3 {[%clk 0:02:05.2]} 19... Nd4 {[%clk 0:02:12.3]}
20. Qf2 {[%clk 0:02:03]} 20... Nc6 {[%clk 0:02:07.1]} 21. Qg2 {[%clk 0:01:58.1]}
21... Rac8 {[%clk 0:01:53.1]} 22. Nxc8 {[%clk 0:01:56.1]} 22... Rxc8 {[%clk
0:01:52.6]} 23. Bxc6 {[%clk 0:01:53.6]} 23... Qxc6 {[%clk 0:01:52.4]} 24. Qxc6
{[%clk 0:01:53.5]} 24... Rxc6 {[%clk 0:01:53.3]} 25. Rfd1 {[%clk 0:01:53.5]}
25... h6 {[%clk 0:01:52.1]} 26. Rac1 {[%clk 0:01:52.1]} 26... Re6 {[%clk
0:01:49.4]} 27. b4 {[%clk 0:01:49.6]} 27... Na4 {[%clk 0:01:43.1]} 28. Rd8+
{[%clk 0:01:49.2]} 28... Kh7 {[%clk 0:01:42.8]} 29. Rc7 {[%clk 0:01:47.5]} 29...
a5 {[%clk 0:01:33.1]} 30. bxa5 {[%clk 0:01:44.7]} 30... bxa5 {[%clk 0:01:32.7]}
31. Rxf7 {[%clk 0:01:44.4]} 31... Rc6 {[%clk 0:01:31.5]} 32. Rdd7 {[%clk
0:01:42]} 32... Rc1+ {[%clk 0:01:31]} 33. Kg2 {[%clk 0:01:41.3]} 33... Rc2+
{[%clk 0:01:30.8]} 34. Kh3 {[%clk 0:01:41.4]} 34... Rxa2 {[%clk 0:01:28.2]} 35.
Rxg7+ {[%clk 0:01:40.6]} 35... Kh8 {[%clk 0:01:28.6]} 36. Rge7 {[%clk
0:01:39.8]} 36... Nc3 {[%clk 0:01:24.7]} 37. Re8# {[%clk 0:01:39.2]} 1-0

[Event "*** Titled Tuesday Blitz"]
[Site "Chess.com"]
[Date "2021.02.02"]
[Round "9"]
[White "tk22h"]
[Black "rachidhuilda"]
[Result "1-0"]
[WhiteElo "2350"]
[BlackElo "2216"]
[TimeControl "180+1"]
[EndTime "11:43:24 PST"]
[Termination "tk22h won by checkmate"]

1. c4 {[%clk 0:03:00.9]} 1... c6 {[%clk 0:02:59.1]} 2. e4 {[%clk 0:02:59.9]}
2... d5 {[%clk 0:02:59.6]} 3. exd5 {[%clk 0:02:59.9]} 3... cxd5 {[%clk
0:02:59.7]} 4. cxd5 {[%clk 0:03:00.5]} 4... Nf6 {[%clk 0:02:59.6]} 5. Nc3 {[%clk
0:03:00.9]} 5... g6 {[%clk 0:02:53.5]} 6. Nf3 {[%clk 0:03:00.4]} 6... Bg7 {[%clk
0:02:50.9]} 7. Bc4 {[%clk 0:02:59.8]} 7... O-O {[%clk 0:02:50.8]} 8. O-O {[%clk
0:02:59.7]} 8... Nbd7 {[%clk 0:02:48.9]} 9. Re1 {[%clk 0:02:59.5]} 9... Nb6
{[%clk 0:02:48.2]} 10. Bb3 {[%clk 0:02:59.3]} 10... Re8 {[%clk 0:02:38.2]} 11.
d4 {[%clk 0:02:57.3]} 11... Nbxd5 {[%clk 0:02:37.6]} 12. Bg5 {[%clk 0:02:57.2]}
12... Bg4 {[%clk 0:02:28.2]} 13. h3 {[%clk 0:02:56.3]} 13... Be6 {[%clk
0:02:13.5]} 14. Rxe6 {[%clk 0:02:55.6]} 14... fxe6 {[%clk 0:02:12.6]} 15. Ne5
{[%clk 0:02:55.3]} 15... a5 {[%clk 0:01:54.9]} 16. Qf3 {[%clk 0:02:52.6]} 16...
Rf8 {[%clk 0:01:26.8]} 17. Re1 {[%clk 0:02:45.7]} 17... Kh8 {[%clk 0:01:17.4]}
18. Qg3 {[%clk 0:02:33.4]} 18... Nxc3 {[%clk 0:01:12.8]} 19. bxc3 {[%clk
0:02:32]} 19... Qd6 {[%clk 0:00:54.6]} 20. Qh4 {[%clk 0:02:28.6]} 20... Kg8
{[%clk 0:00:47.9]} 21. Nxg6 {[%clk 0:02:28.4]} 21... hxg6 {[%clk 0:00:44.7]} 22.
Rxe6 {[%clk 0:02:28.1]} 22... Qxe6 {[%clk 0:00:31]} 23. Bxe6+ {[%clk 0:02:27.3]}
23... Rf7 {[%clk 0:00:31.9]} 24. Bxf6 {[%clk 0:02:20.3]} 24... exf6 {[%clk
0:00:27.5]} 25. Qg4 {[%clk 0:02:19.1]} 25... Re8 {[%clk 0:00:26.6]} 26. d5
{[%clk 0:02:16.4]} 26... f5 {[%clk 0:00:25.9]} 27. Qxg6 {[%clk 0:02:16.3]} 27...
Kf8 {[%clk 0:00:25.3]} 28. Qxf7# {[%clk 0:02:15.7]} 1-0

[Event "*** Titled Tuesday Blitz"]
[Site "Chess.com"]
[Date "2021.02.02"]
[Round "9"]
[White "TeukkaSalama"]
[Black "TimKett"]
[Result "1-0"]
[WhiteElo "2367"]
[BlackElo "2191"]
[TimeControl "180+1"]
[EndTime "11:43:27 PST"]
[Termination "TeukkaSalama won by resignation"]

1. d4 {[%clk 0:03:00.9]} 1... d5 {[%clk 0:02:59.6]} 2. Bf4 {[%clk 0:02:58.3]}
2... e6 {[%clk 0:02:59.6]} 3. e3 {[%clk 0:02:58.8]} 3... c5 {[%clk 0:02:59.7]}
4. c3 {[%clk 0:02:58.8]} 4... Nc6 {[%clk 0:02:59.6]} 5. Nd2 {[%clk 0:02:58.8]}
5... Nf6 {[%clk 0:03:00.1]} 6. Ngf3 {[%clk 0:02:58.6]} 6... Bd6 {[%clk
0:03:00.6]} 7. Bg3 {[%clk 0:02:59.2]} 7... O-O {[%clk 0:02:59.9]} 8. Bd3 {[%clk
0:02:59.7]} 8... Qe7 {[%clk 0:02:58.4]} 9. Ne5 {[%clk 0:02:59]} 9... Nd7 {[%clk
0:02:58.6]} 10. Nxd7 {[%clk 0:02:58.6]} 10... Bxd7 {[%clk 0:02:57.5]} 11. Bxd6
{[%clk 0:02:46.3]} 11... Qxd6 {[%clk 0:02:57.6]} 12. dxc5 {[%clk 0:02:47]} 12...
Qxc5 {[%clk 0:02:57.8]} 13. Bxh7+ {[%clk 0:02:47.3]} 13... Kxh7 {[%clk
0:02:58.3]} 14. Qh5+ {[%clk 0:02:47.6]} 14... Kg8 {[%clk 0:02:58.8]} 15. Ne4
{[%clk 0:02:48.2]} 15... Qc4 {[%clk 0:02:28.6]} 16. Ng5 {[%clk 0:02:20.3]} 16...
Rfe8 {[%clk 0:02:18.1]} 17. Qxf7+ {[%clk 0:01:58.7]} 17... Kh8 {[%clk
0:02:17.5]} 18. Qh5+ {[%clk 0:01:09.6]} 18... Kg8 {[%clk 0:02:16.7]} 19. Rd1
{[%clk 0:01:09.7]} 19... Ne5 {[%clk 0:01:59.9]} 20. Rd4 {[%clk 0:00:53.9]} 20...
Nd3+ {[%clk 0:01:51.1]} 21. Kd2 {[%clk 0:00:52.9]} 1-0

[Event "*** Titled Tuesday Blitz"]
[Site "Chess.com"]
[Date "2021.02.02"]
[Round "9"]
[White "mr65"]
[Black "Taran2004"]
[Result "0-1"]
[WhiteElo "2092"]
[BlackElo "2153"]
[TimeControl "180+1"]
[EndTime "11:43:30 PST"]
[Termination "Taran2004 won by resignation"]

1. e4 {[%clk 0:01:42.5]} 1... c5 {[%clk 0:02:57.3]} 2. d4 {[%clk 0:01:41.5]}
2... cxd4 {[%clk 0:02:57.2]} 3. c3 {[%clk 0:01:41.5]} 3... Nf6 {[%clk
0:02:56.5]} 4. e5 {[%clk 0:01:40.5]} 4... Nd5 {[%clk 0:02:56.8]} 5. Bc4 {[%clk
0:01:40.4]} 5... Nb6 {[%clk 0:02:55.7]} 6. Bb3 {[%clk 0:01:39.9]} 6... Nc6
{[%clk 0:02:56.1]} 7. Nf3 {[%clk 0:01:39.7]} 7... d5 {[%clk 0:02:55.6]} 8. exd6
{[%clk 0:01:36.3]} 8... Qxd6 {[%clk 0:02:55.7]} 9. O-O {[%clk 0:01:34.6]} 9...
Bg4 {[%clk 0:02:54.6]} 10. h3 {[%clk 0:01:32.8]} 10... Bh5 {[%clk 0:02:54.6]}
11. g4 {[%clk 0:01:28]} 11... Bg6 {[%clk 0:02:54.2]} 12. Nxd4 {[%clk 0:01:26.2]}
12... Nxd4 {[%clk 0:02:53.7]} 13. Qxd4 {[%clk 0:01:24.7]} 13... Qxd4 {[%clk
0:02:53.8]} 14. cxd4 {[%clk 0:01:24.3]} 14... e6 {[%clk 0:02:54.3]} 15. f4
{[%clk 0:01:22.8]} 15... Be4 {[%clk 0:02:48.2]} 16. Nc3 {[%clk 0:01:21.3]} 16...
Bc6 {[%clk 0:02:45.7]} 17. d5 {[%clk 0:01:13.6]} 17... Nxd5 {[%clk 0:02:44.9]}
18. Nxd5 {[%clk 0:01:12.2]} 18... Bxd5 {[%clk 0:02:45.2]} 19. Bxd5 {[%clk
0:01:11.8]} 19... exd5 {[%clk 0:02:46.1]} 20. Re1+ {[%clk 0:01:11.6]} 20... Kd7
{[%clk 0:02:46.2]} 21. b3 {[%clk 0:01:06.7]} 21... Bc5+ {[%clk 0:02:45]} 22. Kg2
{[%clk 0:01:05.3]} 22... Rhe8 {[%clk 0:02:40.5]} 23. Rd1 {[%clk 0:01:03.8]}
23... Re2+ {[%clk 0:02:40.3]} 24. Kf3 {[%clk 0:01:02.2]} 24... Rae8 {[%clk
0:02:37.6]} 25. g5 {[%clk 0:00:58]} 25... Rh2 {[%clk 0:02:33.3]} 26. Rxd5+
{[%clk 0:00:50.9]} 26... Kc6 {[%clk 0:02:32.3]} 27. Re5 {[%clk 0:00:50.1]} 27...
Rxe5 {[%clk 0:02:29.7]} 28. fxe5 {[%clk 0:00:47.5]} 28... Rxh3+ {[%clk
0:02:25.9]} 29. Kg4 {[%clk 0:00:46.8]} 29... Rh1 {[%clk 0:02:24.8]} 30. Bb2
{[%clk 0:00:45.1]} 30... Rxa1 {[%clk 0:02:24.3]} 31. Bxa1 {[%clk 0:00:44.4]}
31... g6 {[%clk 0:02:24.6]} 32. Bc3 {[%clk 0:00:40.2]} 32... Kd5 {[%clk
0:02:24.5]} 33. Kf3 {[%clk 0:00:38.5]} 33... Bd4 {[%clk 0:02:23.7]} 0-1

[Event "*** Titled Tuesday Blitz"]
[Site "Chess.com"]
[Date "2021.02.02"]
[Round "9"]
[White "serhanberat_ozdemir"]
[Black "GigaQuparadze"]
[Result "0-1"]
[WhiteElo "2456"]
[BlackElo "2964"]
[TimeControl "180+1"]
[EndTime "11:43:32 PST"]
[Termination "GigaQuparadze won by resignation"]

1. e4 {[%clk 0:03:00.9]} 1... c5 {[%clk 0:03:00]} 2. Nf3 {[%clk 0:03:01]} 2...
e6 {[%clk 0:03:00.4]} 3. c3 {[%clk 0:03:01.1]} 3... d5 {[%clk 0:03:00.1]} 4.
exd5 {[%clk 0:03:02]} 4... Qxd5 {[%clk 0:03:00.8]} 5. d4 {[%clk 0:03:02.9]} 5...
Nc6 {[%clk 0:03:01.3]} 6. Bd3 {[%clk 0:03:02]} 6... cxd4 {[%clk 0:03:01]} 7.
cxd4 {[%clk 0:03:02.9]} 7... Nf6 {[%clk 0:03:01.3]} 8. O-O {[%clk 0:03:01.3]}
8... Be7 {[%clk 0:03:00.5]} 9. Nc3 {[%clk 0:03:01.9]} 9... Qd8 {[%clk
0:03:00.5]} 10. Be3 {[%clk 0:02:55.8]} 10... O-O {[%clk 0:03:00.1]} 11. a3
{[%clk 0:02:52.6]} 11... b6 {[%clk 0:02:59.8]} 12. Rc1 {[%clk 0:02:51.7]} 12...
Bb7 {[%clk 0:02:59.9]} 13. Qe2 {[%clk 0:02:52.3]} 13... Rc8 {[%clk 0:02:59.7]}
14. Rfd1 {[%clk 0:02:52.5]} 14... Nb8 {[%clk 0:02:58.5]} 15. Ne5 {[%clk
0:02:45.2]} 15... Nd5 {[%clk 0:02:58.1]} 16. Qh5 {[%clk 0:02:28.1]} 16... f5
{[%clk 0:02:56.5]} 17. Bb1 {[%clk 0:02:13.2]} 17... Nxc3 {[%clk 0:02:54.4]} 18.
Rxc3 {[%clk 0:02:03.8]} 18... Rxc3 {[%clk 0:02:53.5]} 19. bxc3 {[%clk
0:02:04.7]} 19... Qd5 {[%clk 0:02:53.7]} 20. f3 {[%clk 0:01:56.2]} 20... Qb3
{[%clk 0:02:42]} 21. Re1 {[%clk 0:01:10.8]} 21... Qxc3 {[%clk 0:02:40.6]} 22.
Bf2 {[%clk 0:01:11.4]} 22... Bd5 {[%clk 0:02:39]} 23. f4 {[%clk 0:00:50.8]}
23... Bf6 {[%clk 0:02:38.2]} 24. g4 {[%clk 0:00:47.5]} 24... Bxe5 {[%clk
0:02:36.1]} 25. Rxe5 {[%clk 0:00:38.5]} 25... Qf3 {[%clk 0:02:34.5]} 26. Kf1
{[%clk 0:00:32.6]} 26... Nc6 {[%clk 0:02:32.3]} 27. Rxd5 {[%clk 0:00:28.2]}
27... Qxd5 {[%clk 0:02:31.3]} 28. gxf5 {[%clk 0:00:19]} 28... Qb5+ {[%clk
0:02:30.6]} 29. Kg2 {[%clk 0:00:18.1]} 29... Qxb1 {[%clk 0:02:30.4]} 30. fxe6
{[%clk 0:00:17.4]} 30... Qe4+ {[%clk 0:02:29.9]} 0-1

[Event "*** Titled Tuesday Blitz"]
[Site "Chess.com"]
[Date "2021.02.02"]
[Round "9"]
[White "Nikolaj_6"]
[Black "shaheus"]
[Result "1-0"]
[WhiteElo "2603"]
[BlackElo "2404"]
[TimeControl "180+1"]
[EndTime "11:43:33 PST"]
[Termination "Nikolaj_6 won by resignation"]

1. e4 {[%clk 0:03:00.9]} 1... c5 {[%clk 0:02:59.8]} 2. Nc3 {[%clk 0:02:59.5]}
2... Nc6 {[%clk 0:03:00]} 3. d3 {[%clk 0:02:57.3]} 3... g6 {[%clk 0:03:00.3]} 4.
Be3 {[%clk 0:02:57.4]} 4... d6 {[%clk 0:02:58.1]} 5. Qd2 {[%clk 0:02:57.6]} 5...
Bg7 {[%clk 0:02:58.4]} 6. Nge2 {[%clk 0:02:55.9]} 6... Nf6 {[%clk 0:02:53.7]} 7.
Bh6 {[%clk 0:02:54.1]} 7... O-O {[%clk 0:02:52.8]} 8. Bxg7 {[%clk 0:02:45.5]}
8... Kxg7 {[%clk 0:02:52.6]} 9. h4 {[%clk 0:02:41.9]} 9... h6 {[%clk 0:02:52.2]}
10. d4 {[%clk 0:02:36.7]} 10... cxd4 {[%clk 0:02:32.1]} 11. Nxd4 {[%clk
0:02:37.6]} 11... Qb6 {[%clk 0:02:21.6]} 12. Nb3 {[%clk 0:02:32.7]} 12... a5
{[%clk 0:02:00.7]} 13. a4 {[%clk 0:02:25.8]} 13... Be6 {[%clk 0:01:57.5]} 14.
Bb5 {[%clk 0:02:17.3]} 14... Rfd8 {[%clk 0:01:29]} 15. O-O-O {[%clk 0:02:13.1]}
15... Rac8 {[%clk 0:01:19.9]} 16. Kb1 {[%clk 0:02:12.5]} 16... Ne5 {[%clk
0:01:13.8]} 17. Nd4 {[%clk 0:02:07.9]} 17... Rxc3 {[%clk 0:00:45.8]} 18. Qxc3
{[%clk 0:02:07.4]} 18... Nxe4 {[%clk 0:00:45.1]} 19. Qe3 {[%clk 0:02:05]} 19...
Nf6 {[%clk 0:00:20.1]} 20. Nxe6+ {[%clk 0:02:01.6]} 20... fxe6 {[%clk
0:00:19.4]} 21. Qxb6 {[%clk 0:02:01.3]} 1-0

[Event "*** Titled Tuesday Blitz"]
[Site "Chess.com"]
[Date "2021.02.02"]
[Round "9"]
[White "picturesquecheck"]
[Black "hleol"]
[Result "0-1"]
[WhiteElo "2222"]
[BlackElo "2411"]
[TimeControl "180+1"]
[EndTime "11:43:40 PST"]
[Termination "hleol won by resignation"]

1. e4 {[%clk 0:03:00.9]} 1... c6 {[%clk 0:02:59.4]} 2. d4 {[%clk 0:02:58.3]}
2... d5 {[%clk 0:02:59.6]} 3. Nd2 {[%clk 0:02:54.8]} 3... dxe4 {[%clk
0:02:59.2]} 4. Nxe4 {[%clk 0:02:55.7]} 4... Bf5 {[%clk 0:02:59.3]} 5. Ng3 {[%clk
0:02:55.3]} 5... Bg6 {[%clk 0:02:59.8]} 6. h4 {[%clk 0:02:56.2]} 6... h6 {[%clk
0:03:00.2]} 7. Nf3 {[%clk 0:02:57.1]} 7... Nd7 {[%clk 0:02:59.8]} 8. h5 {[%clk
0:02:58]} 8... Bh7 {[%clk 0:03:00.1]} 9. Bd3 {[%clk 0:02:58.9]} 9... Bxd3 {[%clk
0:03:00.4]} 10. Qxd3 {[%clk 0:02:59.8]} 10... e6 {[%clk 0:03:00.7]} 11. Bd2
{[%clk 0:03:00.3]} 11... Ngf6 {[%clk 0:03:00.9]} 12. O-O-O {[%clk 0:03:00.8]}
12... Qc7 {[%clk 0:03:01.4]} 13. Ne4 {[%clk 0:02:59.8]} 13... O-O-O {[%clk
0:03:01.5]} 14. g3 {[%clk 0:02:58.9]} 14... Nxe4 {[%clk 0:03:01.1]} 15. Qxe4
{[%clk 0:02:59.5]} 15... Nf6 {[%clk 0:03:02]} 16. Qe2 {[%clk 0:02:59.4]} 16...
Bd6 {[%clk 0:03:02.6]} 17. Kb1 {[%clk 0:02:58.6]} 17... Rd7 {[%clk 0:02:58]} 18.
c4 {[%clk 0:02:57.3]} 18... c5 {[%clk 0:02:48.6]} 19. Bc3 {[%clk 0:02:57.1]}
19... cxd4 {[%clk 0:02:46.7]} 20. Nxd4 {[%clk 0:02:54.6]} 20... a6 {[%clk
0:02:46.9]} 21. Nb3 {[%clk 0:02:52.7]} 21... Rhd8 {[%clk 0:02:41.7]} 22. Rc1
{[%clk 0:02:49.8]} 22... Bc5 {[%clk 0:02:12.3]} 23. Rh4 {[%clk 0:02:39.4]} 23...
Rd3 {[%clk 0:02:03]} 24. Be5 {[%clk 0:02:32.6]} 24... Qc6 {[%clk 0:01:59.3]} 25.
Bf4 {[%clk 0:02:27.1]} 25... Qe4 {[%clk 0:01:48.3]} 26. Qxe4 {[%clk 0:02:16.6]}
26... Nxe4 {[%clk 0:01:48.3]} 27. Bxh6 {[%clk 0:02:14.9]} 27... gxh6 {[%clk
0:01:44.1]} 28. Rxe4 {[%clk 0:02:13.4]} 28... Bxf2 {[%clk 0:01:44.5]} 29. g4
{[%clk 0:02:09.2]} 29... Be3 {[%clk 0:01:41.6]} 30. Re1 {[%clk 0:02:05.2]} 30...
Bg5 {[%clk 0:01:39.1]} 31. Kc2 {[%clk 0:01:56.4]} 31... Rg3 {[%clk 0:01:36.7]}
32. R1e2 {[%clk 0:01:54.5]} 32... Rg1 {[%clk 0:01:35.5]} 33. Nd4 {[%clk
0:01:49.5]} 33... Rc1+ {[%clk 0:01:31]} 34. Kb3 {[%clk 0:01:48]} 34... Rd1
{[%clk 0:01:18.3]} 35. Kc3 {[%clk 0:01:43.8]} 35... Bf6 {[%clk 0:01:16.3]} 0-1